Cogmind - Beta 14 @@@ ROGUE MODE // 2024.11.21 @ 11:28:36 Player: Fangrelle Result: Destroyed by CR-CMD(R) with Subdweller Laser Performance ------------- Evolutions (0) 0 Regions Visited (3) 600 Robots Destroyed (22) 110 Value Destroyed (563) 563 Prototype IDs (11) 220 Alien Tech Used (0) 0 Bonus (130) 130 TOTAL SCORE: 1623 Bonus ------- Follower Combat Kills 130 Cogmind --------- Core Integrity 0/250 Matter 127/300 Energy 100/100 System Corruption 0% Temperature Cool (6) Movement Treading (240) Ox1 Location -10/Subcaves Parts ------- > --- POWER (1) -------- (None) > --- PROPULSION (2) --- Light Treads Light Treads > --- UTILITY (2) ------ Cooling System High-capacity Storage Unit > --- WEAPON (2) ------- Makeshift Laser Assault Rifle > --- INVENTORY (20) --- Compact Wheel Cooling System Cooling System Humpback High-capacity Matter Pod (0) Scrap Shield Tractor Beam Rainbow Chip Assault Rifle Datajack Mining Laser Multitool Peak State ------------ > --- POWER ------------ Makeshift Power Source > --- PROPULSION ------- Makeshift Leg Makeshift Leg > --- UTILITY ---------- Cooling System High-capacity Storage Unit > --- WEAPON ----------- Beam Cannon Bore Cannon > --- INVENTORY -------- Ion Engine Light Treads Light Treads Light Treads Compact Wheel Cooling System Cooling System Cooling System High-capacity Matter Pod Scrap Shield Tractor Beam Rainbow Chip Makeshift Laser Particle Cannon Assault Rifle Assault Rifle Light Cannon Datajack Mining Laser [Rating: 25] Favorites ----------- Power Ion Engine Engine Ion Engine Propulsion Light Treads Treads Light Treads Leg Makeshift Leg Utility High-capacity Storage Unit Device Cooling System Storage High-capacity Storage Unit Processor Targeting Computer Weapon Beam Cannon Energy Gun Makeshift Laser Energy Cannon Beam Cannon Ballistic Gun Assault Rifle Ballistic Cannon Bore Cannon Build | -11 -10 -10 -10 ------- Run | Yrd Mat Min Sub Slots Evolved . | . . . . Power . | . . . . Propulsion . | . . . . Utility . | . . . . Weapon . | . . . . Parts Attached 30 | . 12 2 16 Power 3 | . 1 . 2 Engine 3 | . 1 . 2 Core . | . . . . Reactor . | . . . . Propulsion 9 | . 2 . 7 Treads 6 | . 2 . 4 Leg 3 | . . . 3 Wheel . | . . . . Hover . | . . . . Flight . | . . . . Utility 7 | . 6 . 1 Device 3 | . 2 . 1 Storage 3 | . 3 . . Processor 1 | . 1 . . Hackware . | . . . . Protection . | . . . . Artifact . | . . . . Weapon 11 | . 3 2 6 Energy Gun 1 | . . . 1 Energy Cannon 5 | . 2 1 2 Ballistic Gun 1 | . . . 1 Ballistic Cannon 4 | . 1 1 2 Launcher . | . . . . Special Weapon . | . . . . Impact Weapon . | . . . . Slashing Weapon . | . . . . Piercing Weapon . | . . . . Special Melee Weapon . | . . . . Unidentified Prototypes . | . . . . Parts Lost 10 | . . . 10 Power 2 | . . . 2 Propulsion 3 | . . . 3 Utility 1 | . . . 1 Weapon 4 | . . . 4 Highest Loss Streak 7 | . . . 7 To Critical Strikes . | . . . . Average Slot Usage (%) 98 | . 95 100 99 Engine 13 | . 13 14 13 Treads 19 | . 28 28 13 Leg 8 | . . . 14 Device 12 | . 8 14 14 Storage 14 | . 14 14 14 Energy Cannon 13 | . 7 17 14 Ballistic Gun 3 | . 16 . . Ballistic Cannon 10 | . 3 10 12 Peak Build Rating 25 | . 12 15 25 Average Rating 14 | . 8 14 17 On Entrance 9 | 6 6 12 15 Naked Turns . | . . . . Heaviest Build 60 | 12 55 60 60 Greatest Support 40 | 20 40 40 40 Greatest Overweight (x) 3 | . 1 1 3 Average Overweight (x) 1 | . . 1 1 Largest Inventory Capacity 20 | . 20 20 20 Average Capacity 19 | . 19 20 20 Most Carried 20 | . 20 20 20 Average Carried 17 | . 9 19 19 Final Capacity 20 | 8 20 20 20 Final Carried 20 | 6 20 19 14 Class Distribution -------------------- 92% | Mutant 7% | Derelict-Mutant Dominant Class ---------------- Mutant | -10/Materials Mutant | -10/Mines Mutant | -10/Subcaves Resources | -11 -10 -10 -10 ----------- Run | Yrd Mat Min Sub Matter Collected 712 | 200 125 . 387 Remotely . | . . . . Salvage Created 613 | . 314 . 299 Parts 42 | . 22 . 20 Haulers Intercepted 2 | . 2 . . Recyclers Shooed 1 | . 1 . . Parts Field Recycled . | . . . . Retrieved Matter . | . . . . Parts Self-Destructed 16 | . . . 16 Prevented . | . . . . Kills | -11 -10 -10 -10 ------- Run | Yrd Mat Min Sub Combat Hostiles Destroyed 17 | . 6 . 11 Guns 5 | . 4 . 1 Cannons 12 | . 2 . 10 Classes Destroyed 6 | . 5 . 1 Builder 1 | . 1 . . Hauler 2 | . 2 . . Watcher 2 | . 2 . . Swarmer 5 | . 3 . 2 Grunt 3 | . 3 . . Subdweller 9 | . . . 9 Best Kill Streak 3 | . 3 . 1 Combat Bots Only 3 | . 3 . 1 Max Kills in Single Turn 1 | . 1 . 1 Gunslinging . | . . . . Exploded . | . . . . Melee . | . . . . Uniques/NPCs Destroyed . | . . . . Combat | -11 -10 -10 -10 -------- Run | Yrd Mat Min Sub Hostile Shots Fired 120 | . 22 . 98 Missed 37 | . 6 . 31 Damage Taken 1580 | . 148 . 1432 Core 255 | . 39 . 216 Absorbed by Shields . | . . . . Core Remaining (%) 100 | 100 . . . Volleys Fired 89 | . 25 . 64 Largest 2 | . 2 . 2 Hottest 136 | . 136 . 128 Shots Fired 171 | . 50 . 121 Gun 39 | . 28 . 11 Cannon 132 | . 22 . 110 Launcher . | . . . . Special . | . . . . Kinetic 92 | . 34 . 58 Thermal 79 | . 16 . 63 Explosive . | . . . . Electromagnetic . | . . . . Robot Hit Streak 15 | . 6 . 15 Robot Miss Streak 3 | . 3 . 3 Penetration Max . | . . . . Secondary Targets 2 | . 1 . 1 Max Gunslinging Chain 1 | . 1 . 1 Shots Hit Robots 113 | . 26 . 87 Core Hits 29 | . 12 . 17 Critical Kills 3 | . . . 3 Critical Parts Destroyed 2 | . . . 2 Critical Strikes 14 | . . . 14 Burn 1 | . . . 1 Destroy 11 | . . . 11 Blast 2 | . . . 2 Melee Attacks . | . . . . Impact . | . . . . Slashing . | . . . . Piercing . | . . . . Sneak Attacks . | . . . . Combat Hostiles . | . . . . Follow-up Attacks . | . . . . Damage Inflicted 1939 | . 450 . 1489 Guns 347 | . 183 . 164 Cannons 1578 | . 253 . 1325 Explosions . | . . . . Melee . | . . . . Ramming 14 | . 14 . . Kinetic 1001 | . 253 . 748 Thermal 924 | . 183 . 741 Explosive . | . . . . Electromagnetic . | . . . . Impact . | . . . . Slashing . | . . . . Piercing . | . . . . Highest Corruption . | . . . . Average Corruption . | . . . . Corruption Purged . | . . . . Corruption Blocked . | . . . . Overload Shots . | . . . . Overflow Damage 1 | . 1 . . Projectiles 1 | . 1 . . Explosions . | . . . . Melee . | . . . . Knockbacks 15 | . 2 . 13 Impact . | . . . . Kinetic 15 | . 2 . 13 Secondary . | . . . . Self-Inflicted Damage . | . . . . Shots . | . . . . Rammed 1 | . 1 . . Targets Rammed 1 | . 1 . . Kicked . | . . . . Crushed . | . . . . Highest Temperature 51 | . 51 . . Average Temperature 19 | . 19 . . Received Heat Transfer 351 | . 30 . 321 Siege Activations . | . . . . Robots Corrupted . | . . . . Combat Hostiles . | . . . . Parts Fried . | . . . . Impact Corruptions . | . . . . Robots Melted . | . . . . Combat Hostiles . | . . . . Parts Melted 1 | . . . 1 Heat Transferred 1924 | . 333 . 1591 Parts Sabotaged . | . . . . Parts Stolen . | . . . . Parts Stripped . | . . . . Power Chain Reactions . | . . . . Alert | -11 -10 -10 -10 ------- Run | Yrd Mat Min Sub Peak Influence 159 | . 159 33 . Initial 33 | . . 33 . Average 34 | . 53 13 . Maximum Alert Level . | . . . . Low Security (%) 100 | . 100 100 . Level 1 . | . . . . Level 2 . | . . . . Level 3 . | . . . . Level 4 . | . . . . Level 5 . | . . . . High Security . | . . . . Max Security . | . . . . Squads Dispatched . | . . . . Investigation . | . . . . Extermination . | . . . . Reinforcement . | . . . . Assault . | . . . . Garrison . | . . . . Intercept . | . . . . Searches Triggered . | . . . . Construction Impeded . | . . . . Haulers Reinforced . | . . . . Active Scanning Responses . | . . . . Cargo Convoy Interrupts . | . . . . Stealth | -11 -10 -10 -10 --------- Run | Yrd Mat Min Sub Distress Signals 1 | . 1 . . Communications Jammed . | . . . . Distress Signals . | . . . . Times Spotted 26 | . 10 . 16 Peak Tracking Total 3 | . 3 . 3 Tactical Retreats . | . . . . Traps | -11 -10 -10 -10 ------- Run | Yrd Mat Min Sub Traps Triggered . | . . . . Indirectly . | . . . . Trap Hack Attempts . | . . . . Triggered . | . . . . Disarmed . | . . . . Reprogrammed . | . . . . Reused . | . . . . Traps Extracted . | . . . . Installed . | . . . . Triggered . | . . . . Machines | -11 -10 -10 -10 ---------- Run | Yrd Mat Min Sub Machines Disabled 2 | . 1 . 1 Max in Single Turn 1 | . 1 . 1 Machines Repaired . | . . . . Machines Dismantled . | . . . . Machines Sabotaged . | . . . . Overloaded Fab Kills . | . . . . Hacking | -11 -10 -10 -10 --------- Run | Yrd Mat Min Sub Machines Accessed 3 | . 2 . 1 Terminals 2 | . 2 . . Fabricators . | . . . . Repair Stations . | . . . . Recycling Units . | . . . . Scanalyzers . | . . . . Garrison Access . | . . . . Total Hacks 8 | . 7 . 1 Successful 6 | . 5 . 1 Failed 2 | . 2 . . Catastrophic . | . . . . Database Lockouts . | . . . . Manual 7 | . 7 . . Terminals 7 | . 7 . . Fabricators . | . . . . Repair Stations . | . . . . Recycling Units . | . . . . Scanalyzers . | . . . . Garrison Access . | . . . . Terminal Hacks 2 | . 1 . 1 Robot Analysis 1 | . 1 . . Derelict Proto ID Bank 1 | . . . 1 Fabricator Hacks . | . . . . Repair Station Hacks . | . . . . Recycling Unit Hacks . | . . . . Scanalyzer . | . . . . Garrison Access Hacks . | . . . . Unauthorized Hacks 4 | . 4 . . Terminals 4 | . 4 . . Botnet 2 | . 2 . . Operators 1 | . 1 . . Skim 1 | . 1 . . Fabricators . | . . . . Repair Stations . | . . . . Recycling Units . | . . . . Scanalyzers . | . . . . Garrison Access . | . . . . Data Cores Recovered . | . . . . Used . | . . . . Hacking Detections 2 | . 2 . . Full Trace Events . | . . . . Feedback Events . | . . . . Feedback Blocked . | . . . . Robot Schematics Acquired . | . . . . Robots Built . | . . . . Authchips . | . . . . Time . | . . . . Total Robot Build Rating . | . . . . Part Schematics Acquired . | . . . . Parts Built . | . . . . Authchips . | . . . . Time . | . . . . Total Part Build Rating . | . . . . Parts Repaired . | . . . . Time . | . . . . Parts Recycled . | . . . . Recycled Matter . | . . . . Retrieved Matter . | . . . . Retrieved Components . | . . . . Parts Scanalyzed . | . . . . Part Schematics Acquired . | . . . . Parts Damaged . | . . . . Bothacking | -11 -10 -10 -10 ------------ Run | Yrd Mat Min Sub Used RIF Installer . | . . . . Robots Hacked . | . . . . Non-combat . | . . . . Combat . | . . . . Robot Hacks Applied . | . . . . Relay Couplers Released . | . . . . Fabnet Peak Effective % . | . . . . Robots Rewired . | . . . . Allies Hacked . | . . . . Hacks Repelled . | . . . . Allies | -11 -10 -10 -10 -------- Run | Yrd Mat Min Sub Total Allies 2 | . . 2 . Largest Group 2 | . . 2 2 Highest-Rated Group 49 | . . 45 49 Highest-Rated Ally 31 | . . 31 31 Total Orders . | . . . . Ally Attacks 27 | . . . 27 Total Damage 330 | . . . 330 Kills 5 | . . . 5 Allies Corrupted . | . . . . Allies Melted . | . . . . Intel | -11 -10 -10 -10 ------- Run | Yrd Mat Min Sub Robot Analysis Total 1 | . 1 . . Derelict Logs Recovered 2 | . . . 2 Drone Launches . | . . . . Drone Recoveries . | . . . . Exploration | -11 -10 -10 -10 ------------- Run | Yrd Mat Min Sub Turns Passed 5308 | . 1132 1001 3175 Spaces Moved 1665 | 1 414 169 1081 Core . | . . . . Treads 1151 | . 414 169 568 Legs 514 | 1 . . 513 Wheels . | . . . . Hover . | . . . . Flight . | . . . . Fastest Speed 120 | 120 160 240 210 Average Speed 254 | 120 231 240 265 Slowest Speed 330 | 120 240 240 330 Overloaded Moves . | . . . . Propulsion Burnouts . | . . . . Robots Hopped . | . . . . Cave-ins Triggered . | . . . . Exploration Rate (%) 34 | 2 46 20 70 Regions Visited 3 Branch Regions 2 Pre-discovered Areas 1 | . . . 1 Known Exits Taken . | . . . . Unknown Exits Taken 3 | 1 1 1 . Scrap Searched . | . . . . Spaces Dug . | . . . . Terrain Destroyed 9 | . . . 9 Melee . | . . . . Projectile 9 | . . . 9 AOE . | . . . . Terrain Rammed . | . . . . Walls Destroyed . | . . . . Machines Disabled . | . . . . Actions | -11 -10 -10 -10 --------- Run | Yrd Mat Min Sub Total 2571 | . 538 767 1266 Wait 732 | . 57 590 85 Move 1662 | . 413 168 1081 Hop . | . . . . Pick Up 30 | . 18 3 9 Fast Attach 11 | . 7 . 4 Attach 13 | . 3 . 10 Detach 2 | . 2 . . Swap 6 | . 2 2 2 Drop 25 | . 10 4 11 Fire 89 | . 25 . 64 Melee . | . . . . Ram . | . . . . Kick . | . . . . Crush 1 | . 1 . . Escape Stasis . | . . . . Rewire . | . . . . Trap . | . . . . Miscellaneous . | . . . . Route ------- -11/Scrapyard -10/Materials (discovered 2 exits: [*Min] / Sub) -10/Mines -10/Subcaves (discovered 3 exits: [*Mat x2] / [*Rec]) History --------- Turn | Location | Event 1 | -11/Scrapyard | Discovered new exit (range 0) 1 | -11/Scrapyard | Entered Materials 309 | -10/Materials | Build established: Mutant 460 | -10/Materials | Discovered new exit (range 14) 789 | -10/Materials | Discovered new exit (range 14) 1133 | -10/Materials | Entered Mines 1275 | -10/Mines | A weapon hastily lodged in a ceiling crevice suddenly fell to the ground 1304 | -10/Mines | Assembled infested the area 2026 | -10/Mines | Discovered new exit (range 6) 2134 | -10/Mines | Entered Subcaves 2134 | -10/Subcaves | Accompanied by 2 allies 2139 | -10/Subcaves | Led the pair of lost Derelicts to an unsafe place 2217 | -10/Subcaves | A swath of the cavern ceiling suddenly collapsed 2266 | -10/Subcaves | Discovered new exit (range 7) 2271 | -10/Subcaves | Learned Materials terminal intel 2312 | -10/Subcaves | Ambushed by Subdweller buried in earth 2443 | -10/Subcaves | Discovered new exit (range 7) 3032 | -10/Subcaves | Shifting Twisted Machinery released Scrap Shield 3088 | -10/Subcaves | Shifting Twisted Machinery released Sub. Machine Gun 3113 | -10/Subcaves | Shifting Twisted Machinery released Sub. Monowheel 3115 | -10/Subcaves | Shifting Twisted Machinery released Sub. Shrapnel Launcher 3423 | -10/Subcaves | Discovered new exit (range 8) 3599 | -10/Subcaves | Learned location of Zion (-6) 3599 | -10/Subcaves | Met a Zionite searching for "candidates" 3803 | -10/Subcaves | Visited 4L-MR0's lab 3823 | -10/Subcaves | Found Rainbow Chip 3909 | -10/Subcaves | A swath of the cavern ceiling suddenly collapsed 3939 | -10/Subcaves | Build established: Derelict-Mutant 4315 | -10/Subcaves | Build established: Mutant 4742 | -10/Subcaves | Core integrity fell below 50% 5298 | -10/Subcaves | Core integrity fell below 20% 5309 | -10/Subcaves | Destroyed by CR-CMD(R) with Subdweller Laser Last Messages --------------- 04780_ Dropped Ion Engine. 04780_ Acquired Multitool. 04784_ Acquired 60 matter. 04865_ Subatomizers dissect the Ion Engine. 05002_ 3W-GRT(R) knocked back. 05029_ Lgt. Cannon destroyed. 05034_ 3W-GRT(R) destroyed. 05054_ Dropped Lgt. Treads. 05054_ Acquired Humpback. 05253_ Beam Cannon destroyed. 05281_ Carbon-fiber Leg destroyed. 05285_ Mak. Power Source destroyed. 05287_ Mak. Leg destroyed. 05291_ Particle Cannon destroyed. 05293_ Cooling System destroyed. 05294_ X7-IGL(R) suffers critical hit (Burn). 05295_ X7-IGL(R) heat damages Sub. Power Source, Sub. Laser. 05301_ X7-IGL(R) destroyed. 05301_ Switching to secondary target: CR-CMD(R). 05307_ Lgt. Angular Momentum Engine destroyed. Map ----- +----------------------------------------------------+ | ?????????????????????????????????????????????????# | | ?????????????????????????????????????????????????? | | ?????????????????????????????????????????????????? | | ?????????????????????????????????????????????????? | | ??????????????????????????????????????????????#### | | ?????????????????????????????????????????????## | | ????????????????????????????????????????????## | | ???????????????????????????????????????# ## | | ????????????????????????????????????????#^^ | | ????????????????????????????????????????#^ | | ????????????????????????????????????????# # | | ??????????#?????????????????????????????# ??# | | ???###??? ##????????????????????????????????# # | | ##?# #### ###????????????????????????????? #? | | ### ## ## ##?????????????????????????? ##?? | | ### ####?#################????## ##???? | | # ### # # # #?????###?????? | | ### #### ##????????????? | | ??## ##??## #????????????? | | ???## ### ### ### #????## #????????????? | | ????## ##?# ###?#####?# #?????# #?????##?????? | | ?????# ##?# ?????????# ##???## #????# ##????? | | ?????# # ##????##??# *##### ##?## #????? | | ?????## ?### # ###R% ### #???## | | ??????## ## ?# ! #????## | | ???????# ### #?## @ ##???##"" | | ???????## ##?## #?# ## # ## ## # #????# " | | ????????# ???? ??# ??###### #### #######! # | | ????????# ##??? ??##???????# ### ### !%=%# | | ????????" "????#???????????# ####### && # | | ????????"""????????????????####????# % # | | ?????????"??????????????????????# # # # | | ???????????????????????????????# #### " # | | ??????????????????????????????# ### ???# """# | | ???????????????????????????? #??# ???## "" | | ??????????????????????????? #??? ????# | | ?????????????????????????? ????# ????# | | ??????????????????????????? ?????##????### ## | | ???????????????????????????# ??????????????# ## | | ????????????????????????????# ???????????????# # | | ?????????????????????????????????????????????# # | | ????????????????????????????????????????????## ## | | ????????????????????????????????????????????# | | ?????????????????????????????????????????##?## | | ?????????????????????????????????????????# ## | | ?????????????????????????????????????????# | | ?????????????????????????????????????????# | | ?????????????????????????????????????????# # | | ????????????????????????????????????????##% [%# | | ????????????????????????????????????????# % *# | +----------------------------------------------------+ Best States ------------- Heat Dissipation 47 Energy Generation 18 Energy Capacity 250 Matter Stores 280 Matter Capacity 300 Sight Range 16 Terrain Scan Range 14 Terrain Scan Density 10 Evasion (%) 40 Targeting Accuracy 5 Recoil Reduction 2 Item Schematics ----------------- None Robot Schematics ------------------ None Fabricated ------------ Nothing Alien Tech Used ----------------- None Achievements -------------- None Challenges ------------ None Game ------ Seed ConcussiveTowerFirepult Manual? 0 Play Time 00:19:16 Cumulative 124.7 hours Start 2024.11.21 @ 11:00:57 End 2024.11.21 @ 11:28:36 Sessions 1 Manual Loads 0 Difficulty Rogue Special Mode None Game No. 232 Rogue 232 Adventurer 0 Explorer 0 Win Type - Total 0 Types 0/0/0/0/0/0/0/0/0 Lore% 43 Gallery% 40 Achievement% 36 Wizard Run 0 Options --------- Layout 0 ASCII 0 Keyboard 0 Movement Mouse Keybinds 0 Fullscreen 1 Font 24/Smallcaps Map View 91x25 Zoom Use 96% Tactical HUD 1 Map Filters NONE Filters NONE Steam 1 RUN: 440d1380-9efe-49b8-abc6-c57b72ace767